bitfinex-derivatives/quotes_ETHF0:USTF0_20241004
["timestamp","ask_amount","ask_price","bid_price","bid_amount"]
[1728041523821,5.631,2381.3,2381.1,1.245]
[1728041524022,6.051,2381.3,2381.1,1.66503]
[1728041524226,2.33839,2381.4,2381.2,0.42001]
[1728041524414,0.41997,2381.5,2381.2,1.51]
[1728041524822,0.41997,2381.5,2381.3,0.41999]
[1728041525220,0.41997,2381.5,2381.4,0.3872]
[1728041525920,0.41997,2381.5,2381.1,0.8284]
[1728041525921,0.42001,2381.3,2381.1,2.75842]
[1728041526228,0.42001,2381.3,2381.2,0.3872]
[1728041526229,1.93001,2381.3,2381.2,0.3872]
[1728041526414,0.4046,2381.4,2381.1,0.4116]
[1728041526415,1.93001,2381.2,2381.1,0.4116]
[1728041526613,0.42001,2381.2,2381.1,0.4116]
[1728041527220,0.42,2381.3,2381.1,2.34163]
[1728041527625,0.42,2381.3,2381.2,0.3864]
[1728041537132,0.42,2381.3,2381.2,0.7736]
[1728041537437,1.9146,2381.4,2381.3,0.42]
[1728041537438,0.82458,2381.4,2381.3,0.42]
[1728041537737,0.82458,2381.4,2381.3,1.51]
[1728041537930,0.42,2381.3,2381.2,2.2836]
[1728041538131,0.42,2381.3,2381.2,0.7736]
[1728041538340,0.42,2381.3,2381.1,0.83162]
[1728041538341,0.42001,2381.2,2381.1,0.4116]
[1728041538637,0.42005,2381.0,2380.9,0.8054]
[1728041538836,1.93005,2381.0,2380.9,0.4182]
[1728041539232,0.42007,2380.9,2380.8,3.6239]
[1728041539735,0.42007,2380.9,2380.8,5.1339]
[1728041540931,0.42007,2380.9,2380.8,1.9261]
[1728041542438,0.42007,2380.9,2380.8,2.34618]
[1728041543631,0.42007,2380.9,2380.8,1.9261]
[1728041544035,1.46102,2381.1,2380.8,1.9261]
[1728041544542,0.42007,2380.9,2380.8,1.9261]
[1728041544739,0.42006,2381.0,2380.8,2.34617]
[1728041545045,0.42006,2381.0,2380.9,1.93007]
[1728041545833,0.42006,2381.0,2380.9,1.51]
[1728041552837,0.4109,2381.1,2380.8,0.83617]
[1728041553045,0.42007,2380.9,2380.8,0.83617]
[1728041557553,0.42006,2381.0,2380.9,0.42006]
[1728041558246,1.461,2381.1,2380.8,0.4161]
[1728041558544,0.42007,2380.9,2380.8,0.83617]
[1728041558743,0.42004,2381.1,2381.0,0.42003]
[1728041558950,0.42004,2381.1,2381.0,1.93003]
[1728041559250,0.42002,2381.2,2381.1,0.42002]
[1728041560543,0.42003,2381.1,2381.0,0.42004]
[1728041566762,0.42003,2381.1,2380.9,0.42005]
[1728041568358,0.42003,2381.1,2380.8,0.4161]
[1728041568554,0.42005,2381.0,2380.9,0.42005]
[1728041569458,0.42005,2381.0,2380.9,0.84435]
[1728041569659,0.42004,2381.1,2380.9,0.84435]
[1728041570254,0.42005,2381.0,2380.9,0.4243]
[1728041581653,5.71,2381.0,2380.5,0.098]
[1728041581865,0.42011,2380.7,2380.5,0.8193]
[1728041582060,0.4201,2380.8,2380.6,0.42011]
[1728041584568,0.4201,2380.8,2380.5,0.8193]
[1728041584569,0.42012,2380.6,2380.5,0.8193]
[1728041587577,0.42011,2380.7,2380.5,2.74944]
[1728041588273,3.2078,2380.9,2380.8,0.42008]
[1728041588479,3.2078,2380.9,2380.8,1.93008]
[1728041589073,3.2078,2380.9,2380.8,1.51]
[1728041589277,3.62787,2380.9,2380.7,0.42009]
[1728041589482,3.62787,2380.9,2380.8,0.3864]
[1728041589685,0.42012,2380.6,2380.5,1.9233]
[1728041589882,0.42012,2380.6,2380.5,2.3097]
[1728041591586,0.42012,2380.6,2380.5,0.7997]
[1728041592485,1.47912,2380.8,2380.5,2.3097]
[1728041592688,0.42011,2380.7,2380.5,2.72983]
[1728041593190,0.42012,2380.6,2380.5,2.3097]
[1728041598591,0.42012,2380.6,2380.5,2.72984]
[1728041598889,0.42012,2380.6,2380.5,2.3097]
[1728041605396,0.42012,2380.6,2380.5,2.72984]
[1728041605797,1.47914,2380.8,2380.5,2.72984]
[1728041605999,0.42011,2380.7,2380.5,2.72984]
[1728041606995,1.47914,2380.8,2380.5,2.3097]
[1728041607201,0.42012,2380.6,2380.5,2.3097]
[1728041608100,0.42012,2380.6,2380.5,0.7997]
[1728041608399,3.40054,2380.8,2380.2,2.02819]
[1728041608607,3.40054,2380.8,2380.3,0.4134]
[1728041608608,0.42016,2380.4,2380.3,0.4134]
[1728041609701,0.7876,2380.5,2380.3,0.4134]
[1728041609894,0.42016,2380.4,2380.3,0.4134]
[1728041611001,5.7108,2380.4,2380.0,0.098]
[1728041611202,0.42026,2379.8,2379.7,0.098]
[1728041611501,1.51,2380.2,2379.6,1.2107]
[1728041611502,5.76839,2380.0,2379.6,1.2107]
[1728041611802,0.42028,2379.7,2379.6,1.2107]
[1728041612010,0.42027,2379.8,2379.6,1.2107]
[1728041612209,0.42025,2379.9,2379.6,1.63099]
[1728041613311,1.93028,2379.7,2379.3,0.42034]
[1728041613499,1.93029,2379.7,2379.3,0.81854]
[1728041613701,0.42029,2379.7,2379.4,1.93033]
[1728041614203,0.83459,2379.7,2379.4,1.51]
[1728041614410,0.83459,2379.7,2379.4,1.93033]
[1728041615298,0.83458,2379.7,2379.4,1.93033]
[1728041615497,1.51,2379.8,2379.5,1.51]
[1728041615803,1.93028,2379.8,2379.6,0.4122]
[1728041616006,0.42028,2379.7,2379.6,0.4122]
[1728041617109,0.42028,2379.7,2379.6,0.8114]
[1728041617806,0.42027,2379.8,2379.6,1.2138]
[1728041618008,0.42028,2379.7,2379.6,1.2138]
[1728041627217,6.19374,2379.9,2379.6,3.14409]
[1728041627218,0.42027,2379.8,2379.6,3.14409]
[1728041627813,3.2078,2379.9,2379.6,3.14409]
[1728041628009,0.42028,2379.7,2379.6,2.7238]
[1728041628199,0.42027,2379.8,2379.6,3.14409]
[1728041628407,5.08921,2380.2,2379.6,2.7238]
[1728041628610,0.42024,2380.0,2379.9,1.51]
[1728041629204,5.1438,2380.2,2379.7,1.93027]
[1728041629408,0.42026,2379.9,2379.7,1.93027]
[1728041630608,2.56053,2380.1,2379.7,1.93027]
[1728041630916,0.42026,2379.9,2379.7,1.93027]
[1728041631906,0.42026,2379.9,2379.7,0.42027]
[1728041632312,0.42026,2379.8,2379.7,0.42027]
[1728041633212,0.42026,2379.9,2379.7,0.42027]
[1728041635016,0.83246,2379.9,2379.7,0.42027]
[1728041637718,0.4122,2379.9,2379.6,0.8016]
[1728041638031,0.83244,2379.9,2379.7,0.42027]
[1728041638717,0.4122,2379.9,2379.7,0.42027]
[1728041638917,0.4122,2379.9,2379.8,0.42026]
[1728041639508,1.51,2380.0,2379.8,0.42026]
[1728041640520,1.93023,2380.0,2379.8,0.42026]
[1728041640725,1.51,2380.0,2379.9,0.42024]
[1728041641924,1.51,2380.0,2379.7,0.4052]
[1728041642220,3.2078,2380.1,2379.9,0.42024]
[1728041642221,5.13802,2380.1,2379.9,0.42024]
[1728041642415,5.13802,2380.1,2380.0,0.8115]
[1728041643220,1.93022,2380.1,2380.0,0.8115]
[1728041644117,3.6109,2380.2,2380.0,0.8115]
[1728041644313,3.6109,2380.2,2380.1,0.82461]
[1728041644717,3.2078,2380.2,2380.1,0.82461]
[1728041645115,3.62799,2380.2,2380.1,0.4044]
[1728041645322,3.2078,2380.2,2380.1,0.4044]
[1728041646413,3.2078,2380.2,2380.1,0.82461]
[1728041647013,2.32268,2380.3,2380.1,0.82461]
[1728041647218,5.13798,2380.3,2380.1,0.82461]
[1728041647415,4.7178,2380.3,2380.1,0.4044]
[1728041647614,0.42019,2380.2,2380.1,0.4044]
[1728041648519,4.7178,2380.3,2380.1,0.8246]
[1728041648724,0.098,2380.6,2380.3,0.42017]
[1728041648725,3.3058,2380.6,2380.3,0.42017]
[1728041648916,0.42014,2380.5,2380.4,0.3994]
[1728041649116,0.42014,2380.5,2380.4,0.7977]
[1728041650126,1.93014,2380.5,2380.4,0.7977]
[1728041650419,0.42019,2380.2,2380.1,0.4044]
[1728041650626,0.42021,2380.1,2380.0,0.7977]
[1728041650816,0.42021,2380.1,2379.8,0.098]
[1728041650817,0.42024,2380.0,2379.8,0.4069]
[1728041651122,1.93024,2379.9,2379.8,1.2046]
[1728041652116,1.51,2379.9,2379.8,1.2046]
[1728041653126,1.93024,2379.9,2379.8,1.2046]
[1728041656525,1.51,2379.9,2379.8,1.62486]
[1728041656929,1.93024,2379.9,2379.8,1.2046]
[1728041657531,1.51,2379.9,2379.8,1.2046]
[1728041657732,1.51,2379.9,2379.8,1.62486]
[1728041660234,1.93024,2380.0,2379.8,1.62486]
[1728041663822,1.51,2380.0,2379.8,1.62486]
[1728041664229,1.93024,2380.0,2379.8,1.62486]
[1728041665432,1.51,2380.0,2379.8,1.2046]
[1728041665635,1.51,2379.9,2379.5,3.2078]
[1728041665836,0.42027,2379.8,2379.6,0.8194]
[1728041666035,0.42028,2379.7,2379.6,0.8194]
[1728041666427,1.93028,2379.7,2379.6,0.8194]
[1728041667130,1.8981,2379.8,2379.6,0.8194]
[1728041667335,2.31837,2379.8,2379.6,1.2397]
[1728041667730,2.31837,2379.8,2379.6,0.8194]
[1728041669827,1.8981,2379.8,2379.6,0.8194]
[1728041670042,0.42028,2379.7,2379.6,0.8194]
[1728041671843,0.80837,2379.8,2379.6,1.23969]
[1728041672644,0.3881,2379.8,2379.6,0.8194]
[1728041672941,0.42028,2379.7,2379.6,0.8194]
[1728041678848,0.42028,2379.7,2379.6,1.2397]
[1728041679042,3.2078,2379.9,2379.7,0.42027]
[1728041679237,3.62805,2379.9,2379.7,0.42028]
[1728041679444,3.62805,2379.9,2379.7,0.42027]
[1728041679847,3.62805,2379.9,2379.6,2.3294]
[1728041680046,3.62805,2379.9,2379.8,0.42026]
[1728041680245,3.62805,2379.9,2379.7,0.42027]
[1728041680447,3.62805,2379.9,2379.6,2.3294]
[1728041680753,3.62805,2379.9,2379.7,0.42026]
[1728041681249,1.51,2379.8,2379.6,0.8194]
[1728041681443,1.93028,2379.7,2379.6,0.8194]
[1728041681643,2.35178,2379.7,2379.6,0.8194]
[1728041681840,2.35178,2379.7,2379.6,0.4231]
[1728041682854,0.4215,2379.7,2379.6,0.4231]
[1728041683056,0.84178,2379.7,2379.6,0.4231]
[1728041683256,1.93027,2379.8,2379.6,0.84339]
[1728041683746,3.6293,2379.9,2379.7,0.4251]
[1728041684143,4.04956,2379.9,2379.7,0.84538]
[1728041684344,0.42026,2379.8,2379.7,0.4251]
[1728041686351,1.93026,2379.8,2379.7,0.4251]
[1728041691245,3.6293,2379.9,2379.7,0.4251]
[1728041691451,3.62806,2379.9,2379.7,0.84538]
[1728041691759,0.42026,2379.8,2379.7,1.9351]
[1728041695062,0.42026,2379.8,2379.7,2.35538]
[1728041696163,0.42026,2379.8,2379.7,1.9351]
[1728041697160,0.42026,2379.8,2379.7,2.35538]
[1728041698257,0.42026,2379.8,2379.7,1.9351]
[1728041698560,2.6585,2380.2,2379.7,1.9351]
[1728041698561,0.098,2380.2,2379.7,1.9351]
[1728041698765,3.2078,2380.3,2379.7,1.9351]
[1728041698766,5.73725,2380.3,2379.8,1.51]
[1728041699064,0.42022,2380.1,2380.0,1.51]
[1728041699254,0.42022,2380.1,2380.0,1.9377]
[1728041700167,0.42022,2380.1,2380.0,2.35793]
[1728041700368,0.42022,2380.1,2380.0,1.9377]
[1728041701070,0.4202,2380.2,2380.0,6.1393]
[1728041701367,0.4202,2380.2,2380.0,0.4277]
[1728041701368,0.42021,2380.1,2380.0,0.4277]
[1728041702062,0.42021,2380.1,2380.0,4.6293]
[1728041702471,0.42021,2380.1,2380.0,0.4277]
[1728041702671,0.42021,2380.1,2380.0,4.6293]
[1728041702961,0.42021,2380.1,2380.0,0.4277]
[1728041703972,1.93021,2380.1,2380.0,0.4277]
[1728041705170,0.42029,2379.7,2379.5,1.608]
[1728041705467,0.42029,2379.7,2379.6,0.4164]
[1728041706069,0.4067,2379.9,2379.6,0.8367]
[1728041706270,0.42028,2379.7,2379.6,0.8367]
[1728041706673,2.65852,2380.2,2379.6,6.1288]
[1728041706860,2.65852,2380.2,2379.9,0.42024]
[1728041706861,0.42023,2380.0,2379.9,0.42024]
[1728041707369,0.42023,2380.0,2379.8,1.93025]
[1728041707570,0.42023,2380.0,2379.9,0.3892]
[1728041708166,0.42022,2380.1,2379.9,0.3892]
[1728041708467,0.42022,2380.1,2380.0,1.911]
[1728041708667,0.42022,2380.1,2380.0,6.1126]
[1728041709062,0.42022,2380.1,2380.0,4.6026]
[1728041709666,0.42022,2380.1,2380.0,5.0046]
[1728041709868,0.42022,2380.1,2380.0,0.803]
[1728041710069,0.42022,2380.1,2380.0,5.0046]
[1728041710263,0.42022,2380.1,2380.0,0.803]
[1728041712370,5.7116,2380.1,2379.6,3.2078]
[1728041712578,5.13808,2379.7,2379.6,0.8061]
[1728041712870,3.62808,2379.7,2379.6,0.8061]
[1728041714272,3.2078,2379.7,2379.6,6.9388]
[1728041714468,0.8117,2380.0,2379.7,0.42027]
[1728041714469,0.42025,2379.9,2379.7,0.42027]
[1728041717067,1.51,2379.9,2379.6,0.4164]
[1728041717276,1.93028,2379.7,2379.6,0.4164]
[1728041717784,0.84448,2379.7,2379.6,0.4164]
[1728041719876,1.9342,2379.7,2379.4,0.4255]
[1728041720076,0.42031,2379.5,2379.4,0.4255]
[1728041721585,1.51,2379.5,2379.3,0.4052]
[1728041721779,0.81203,2379.4,2379.3,0.4052]
[1728041723072,0.42033,2379.4,2379.3,1.9152]
[1728041723470,1.44245,2379.6,2379.3,1.9152]
[1728041723987,0.42031,2379.5,2379.3,1.9152]
[1728041724586,0.3917,2379.6,2379.4,1.51]
[1728041724787,4.2968,2379.7,2379.5,1.51]
[1728041725084,0.4203,2379.6,2379.5,0.3965]
[1728041725970,4.2968,2379.7,2379.5,0.3965]
[1728041726175,4.71709,2379.7,2379.6,0.3971]
[1728041726382,1.50929,2379.7,2379.6,0.3971]
[1728041726980,0.42026,2379.8,2379.6,2.32739]
[1728041727174,0.42026,2379.8,2379.7,0.3922]
[1728041727374,4.2968,2380.0,2379.7,0.3922]
[1728041727375,0.42026,2379.9,2379.7,2.32247]
[1728041727888,0.42026,2379.9,2379.8,0.4088]
[1728041732087,1.93026,2379.9,2379.8,0.4088]
[1728041736588,5.7116,2379.9,2379.7,0.3922]
[1728041736789,1.93026,2379.9,2379.7,0.81248]
[1728041737090,1.93024,2379.9,2379.8,0.422]
[1728041737691,0.42026,2379.8,2379.7,0.3922]
[1728041738896,0.42028,2379.7,2379.6,0.8191]
[1728041739188,0.42028,2379.7,2379.6,0.422]
[1728041739189,0.81248,2379.7,2379.6,0.422]
[1728041747294,0.3922,2379.7,2379.5,0.4038]
[1728041747496,0.4203,2379.6,2379.5,0.4038]
[1728041747691,0.4203,2379.6,2379.5,0.812]
[1728041747894,0.4203,2379.6,2379.5,1.23231]
[1728041748390,0.3922,2379.7,2379.5,1.23231]
[1728041748691,0.4203,2379.6,2379.5,0.812]
[1728041750492,0.4203,2379.6,2379.5,0.4038]
[1728041750698,0.42034,2379.4,2379.2,0.3991]
[1728041750892,0.42034,2379.4,2379.2,1.62726]
[1728041754387,0.42034,2379.4,2379.2,1.2069]
[1728041754593,0.42034,2379.4,2379.2,1.62726]
[1728041755205,5.76856,2379.6,2379.2,1.2069]
[1728041755393,0.42034,2379.4,2379.2,1.62726]
[1728041755593,0.42034,2379.4,2379.2,1.2069]
[1728041756101,0.42034,2379.4,2379.2,1.62726]
[1728041756301,0.42034,2379.4,2379.2,1.2069]
[1728041756500,0.42034,2379.4,2379.2,1.62726]
[1728041756998,0.42033,2379.5,2379.2,1.62727]
[1728041758397,0.42033,2379.4,2379.2,1.62727]
[1728041758598,0.42033,2379.5,2379.2,1.62727]
[1728041760401,0.42033,2379.5,2379.2,1.2069]
[1728041760603,5.13811,2379.6,2379.3,0.42034]
[1728041760802,0.42032,2379.5,2379.3,0.42034]
[1728041761208,0.42032,2379.5,2379.2,1.2069]
[1728041761513,0.42032,2379.5,2379.3,0.42035]
[1728041763311,3.62811,2379.6,2379.3,1.51]
[1728041763507,3.2078,2379.6,2379.4,0.42033]
[1728041763810,3.2078,2379.6,2379.5,0.42031]
[1728041764006,3.2078,2379.6,2379.3,1.51]
[1728041764205,3.2078,2379.6,2379.4,0.42032]
[1728041764409,3.2078,2379.6,2379.5,0.42031]
[1728041764606,3.2078,2379.6,2379.3,1.51]
[1728041764805,3.62811,2379.6,2379.4,0.42032]
[1728041765407,4.7178,2379.6,2379.2,2.3178]
[1728041765607,0.42032,2379.5,2379.3,0.80884]
[1728041765812,5.13811,2379.6,2379.4,0.42033]
[1728041766413,3.62811,2379.6,2379.3,0.3885]
[1728041766609,0.42032,2379.5,2379.3,0.3885]
[1728041766809,3.6281,2379.6,2379.4,0.42032]
[1728041767015,3.2078,2379.6,2379.3,0.3885]
[1728041767212,3.2078,2379.6,2379.5,0.42031]
[1728041768005,0.42029,2379.7,2379.5,0.42031]
[1728041768210,0.42029,2379.7,2379.6,0.8308]
[1728041768410,0.42029,2379.7,2379.6,1.2438]
[1728041775721,0.42028,2379.7,2379.6,1.2438]
[1728041781621,0.42026,2379.9,2379.6,1.66409]
[1728041781821,0.42027,2379.8,2379.6,1.2438]
[1728041782728,0.42027,2379.8,2379.6,1.6641]
[1728041784027,2.96608,2380.0,2379.6,1.6641]
[1728041784430,0.42028,2379.7,2379.6,1.6641]
[1728041785526,0.42028,2379.7,2379.6,1.2438]
[1728041791132,2.56063,2379.9,2379.7,0.42028]
[1728041791133,0.42027,2379.8,2379.7,0.42028]
[1728041791335,0.42028,2379.7,2379.6,1.66409]
[1728041791632,1.51,2379.9,2379.6,1.66409]
[1728041791830,0.42027,2379.8,2379.6,1.66409]
[1728041792828,1.51,2379.9,2379.6,1.66409]
[1728041793029,0.42027,2379.8,2379.6,1.66409]
[1728041793229,1.51,2379.9,2379.6,1.66409]
[1728041793725,0.42026,2379.8,2379.6,1.2438]
[1728041793931,3.2078,2380.1,2379.7,1.51]
[1728041794235,0.84048,2380.3,2380.1,0.42019]
[1728041794442,0.84048,2380.3,2380.2,0.794]
[1728041794730,0.4203,2380.3,2380.2,0.794]
[1728041794925,3.2078,2380.4,2380.2,2.7165]
[1728041795329,4.01881,2380.7,2380.4,0.42014]
[1728041795545,4.0188,2380.7,2380.6,1.51]
[1728041795733,4.01882,2380.7,2380.4,1.93014]
[1728041796028,4.01882,2380.7,2380.5,0.42014]
[1728041796234,4.01882,2380.7,2380.6,0.4043]
[1728041796928,3.62792,2380.7,2380.6,0.4043]
[1728041800333,5.13792,2380.7,2380.6,0.4043]
[1728041800530,1.47043,2380.6,2380.2,0.8132]
[1728041800728,0.42017,2380.3,2380.2,1.2201]
[1728041801031,1.51,2380.4,2380.2,1.2201]
[1728041801032,0.42016,2380.4,2380.2,1.64028]
[1728041801236,0.42015,2380.5,2380.3,0.42017]
[1728041801639,0.42016,2380.4,2380.2,2.7301]
[1728041801830,0.42016,2380.4,2380.2,3.15028]
[1728041802134,1.9154,2380.6,2380.2,2.7301]
[1728041802338,0.42014,2380.5,2380.3,0.42017]
[1728041802530,0.42014,2380.5,2380.2,2.7301]
[1728041802531,0.42014,2380.5,2380.4,0.42016]
[1728041803141,0.42014,2380.5,2380.3,0.42016]
[1728041804630,0.42016,2380.4,2380.3,0.42016]
[1728041805234,0.42014,2380.5,2380.4,0.42015]
[1728041806237,0.42014,2380.5,2380.3,0.42016]
[1728041807237,0.42012,2380.6,2380.4,1.51]
[1728041807440,0.42012,2380.6,2380.5,0.42014]
[1728041807834,0.42012,2380.6,2380.4,1.93014]
[1728041808330,40.24751,2380.8,2380.7,0.4201]
[1728041808736,40.24751,2380.8,2380.7,15.3379]
[1728041814242,40.24751,2380.8,2380.7,15.51284937]
[1728041816844,40.24751,2380.8,2380.7,13.8279]
[1728041817046,40.24751,2380.8,2380.7,9.3379]
[1728041817242,40.24751,2380.8,2380.7,15.3379]
[1728041818436,39.63931465,2380.8,2380.7,15.3379]
[1728041818640,9.0435225,2380.8,2380.7,15.3379]
[1728041818949,0.098,2381.3,2381.2,0.42001]
[1728041819152,0.4165,2381.9,2381.7,0.41993]
[1728041819153,0.098,2381.8,2381.7,0.41993]
[1728041819341,0.4165,2381.9,2381.7,0.41993]
[1728041819342,0.4165,2381.9,2381.7,1.92993]
[1728041819645,0.4165,2381.9,2381.8,0.41991]
[1728041820238,0.4165,2381.9,2381.7,1.51]
[1728041820437,0.4165,2381.9,2381.8,0.41991]
[1728041820742,0.4165,2381.9,2381.7,1.92992]
[1728041821140,0.83639,2381.9,2381.7,1.92992]
[1728041821546,0.83639,2381.9,2381.7,0.41992]
[1728041822252,0.83639,2381.9,2381.6,3.28]
[1728041822451,0.83639,2381.9,2381.7,0.41993]
[1728041822641,0.83639,2381.9,2381.6,3.28]
[1728041822841,0.83639,2381.9,2381.6,3.69993]
[1728041823344,0.4165,2381.9,2381.6,3.28]
[1728041823647,0.41992,2381.8,2381.6,3.28]
[1728041826547,0.41993,2381.7,2381.5,3.2078]
[1728041826742,0.41993,2381.7,2381.1,5.104]
[1728041826743,3.6711,2381.7,2381.1,4.246]
[1728041826943,3.6711,2381.7,2380.9,0.42006]
[1728041826944,0.42003,2381.2,2380.9,0.42006]
[1728041827144,0.7778,2381.1,2380.8,3.2078]
[1728041827451,0.7778,2381.1,2380.5,0.098]
[1728041827452,0.42008,2380.9,2380.6,0.42012]
[1728041827654,1.8279,2381.1,2380.5,7.72902]
[1728041827655,0.7778,2381.1,2380.5,7.72902]
[1728041827950,0.7778,2381.1,2380.5,7.3089]
[1728041828160,1.19785,2381.1,2380.8,0.42008]
[1728041828953,0.7778,2381.1,2380.7,3.28]
[1728041829146,0.42007,2380.9,2380.7,3.7001]
[1728041829341,0.7778,2381.1,2380.7,3.7001]
[1728041829545,0.42007,2381.0,2380.7,3.7001]
[1728041829746,0.7778,2381.1,2380.8,0.42008]
[1728041830052,0.42005,2381.0,2380.8,0.42008]
[1728041830251,0.42005,2381.0,2380.7,3.70009]
[1728041830753,0.7778,2381.1,2380.7,3.70009]
[1728041830754,0.7778,2381.1,2380.7,3.28]
[1728041830949,0.42008,2380.9,2380.7,3.28]
[1728041832256,0.42008,2380.9,2380.7,6.4878]
[1728041833546,0.42008,2380.9,2380.7,6.9079]
[1728041834252,0.42008,2380.9,2380.7,6.4878]
[1728041834550,0.42008,2380.9,2380.7,6.9079]
[1728041835155,0.42005,2381.0,2380.7,6.4878]
[1728041835352,0.42005,2381.0,2380.7,6.90789]
[1728041835549,0.7778,2381.1,2380.7,6.4878]
[1728041835752,0.42008,2380.9,2380.7,6.4878]
[1728041836551,0.7778,2381.1,2380.7,3.2078]
[1728041836552,0.42008,2380.8,2380.7,3.2078]
[1728041837149,2.2264,2381.1,2380.7,3.2078]
[1728041837348,0.42008,2380.9,2380.7,3.2078]
[1728041838643,0.42008,2380.9,2380.7,3.6279]
[1728041840254,2.2264,2381.1,2380.7,3.2078]
[1728041840752,0.42007,2380.9,2380.7,3.62789]
[1728041841755,2.2264,2381.1,2380.8,0.42007]
[1728041841756,0.42006,2381.0,2380.8,0.42007]
[1728041842052,0.7778,2381.1,2380.7,3.2078]
[1728041842053,0.42003,2381.2,2380.9,3.70005]
[1728041842255,0.42006,2381.0,2380.8,0.42008]
[1728041842456,0.805,2381.1,2380.8,0.4275]
[1728041842665,0.82151,2381.3,2381.1,0.42003]
[1728041842849,0.4015,2381.3,2381.0,0.3864]
[1728041843156,0.41997,2381.5,2381.3,0.42]
[1728041843359,8.1372,2381.7,2381.5,0.41996]
[1728041843657,4.43614,2381.7,2381.5,0.41996]
[1728041844053,4.43614,2381.7,2381.5,0.80636]
[1728041845462,0.41994,2381.6,2381.5,0.3864]
[1728041846355,0.41994,2381.6,2381.5,0.80636]
[1728041848666,0.41991,2381.9,2381.5,7.8656]
[1728041848863,1.04968,2382.1,2381.7,3.28]
[1728041849156,3.3058,2382.2,2381.7,3.28]
[1728041849157,0.41988,2382.0,2381.8,0.8298]
[1728041849362,0.41988,2382.0,2381.9,0.4251]
[1728041849553,3.2078,2382.2,2381.9,0.4251]
[1728041849755,3.2078,2382.2,2381.9,0.84498]
[1728041849955,3.62765,2382.2,2382.0,0.41987]
[1728041850158,3.62765,2382.2,2382.0,0.84647]
[1728041850861,0.41986,2382.1,2382.0,0.84647]
[1728041851051,3.2078,2382.2,2382.0,0.4266]
[1728041851253,3.62765,2382.2,2382.0,0.84646]
[1728041851658,0.41986,2382.1,2382.0,0.84646]
[1728041852058,0.41984,2382.2,2382.1,0.41986]
[1728041852454,0.41984,2382.2,2382.0,0.4266]
[1728041852455,4.25734,2382.4,2382.0,0.4266]
[1728041852655,4.25734,2382.4,2382.0,0.84646]
[1728041852656,0.41985,2382.2,2382.0,0.84646]
[1728041853259,0.41986,2382.1,2382.0,0.84646]
[1728041853563,4.25734,2382.4,2382.0,0.4266]
[1728041853768,0.41985,2382.2,2382.0,0.84647]
[1728041854065,0.41986,2382.1,2382.0,0.84647]
[1728041854265,4.25734,2382.4,2382.0,0.84647]
[1728041854566,0.8491,2382.5,2382.2,0.41983]
[1728041854868,0.8491,2382.5,2382.2,3.28]
[1728041855079,0.41981,2382.4,2382.2,0.41983]
[1728041855562,0.41981,2382.4,2382.2,0.84243]
[1728041856263,3.2078,2382.7,2382.2,0.4226]
[1728041856471,3.62756,2382.7,2382.5,0.41977]
[1728041856760,3.28,2383.1,2382.8,0.41973]
[1728041856962,4.35497,2383.2,2382.7,0.41974]
[1728041856963,0.41972,2382.9,2382.7,0.41974]
[1728041857563,0.41972,2382.9,2382.8,0.41973]
[1728041857760,1.04921,2383.1,2382.6,1.2392]
[1728041858065,0.41974,2382.8,2382.6,1.65896]
[1728041858268,3.28,2383.1,2382.7,0.41974]
[1728041858465,0.41972,2382.9,2382.7,0.41974]
[1728041858966,0.41972,2382.9,2382.6,1.2392]
[1728041858967,0.41974,2382.8,2382.6,1.65895]
[1728041859463,3.28,2383.1,2382.6,1.65895]
[1728041859667,0.41972,2382.9,2382.6,1.65895]
[1728041860066,3.28,2383.1,2382.6,1.2392]
[1728041860268,0.41974,2382.8,2382.6,1.2392]
[1728041860468,0.41972,2382.9,2382.6,1.65896]
[1728041860668,4.32923,2383.1,2382.6,1.2392]
[1728041860869,0.41974,2382.8,2382.6,1.2392]
[1728041861571,4.32923,2383.1,2382.6,1.65896]
[1728041861768,0.41973,2382.9,2382.6,1.65896]
[1728041861964,0.41974,2382.8,2382.6,1.2392]
[1728041862171,0.41979,2382.5,2382.4,3.2078]
[1728041862467,4.1277,2382.7,2382.4,3.2078]
[1728041862767,0.41977,2382.6,2382.4,3.2078]
[1728041863377,0.41979,2382.5,2382.4,3.2078]
[1728041863579,4.1277,2382.7,2382.4,3.2078]
[1728041863870,0.41978,2382.6,2382.4,3.2078]
[1728041865562,0.41979,2382.5,2382.4,3.2078]
[1728041866170,7.89739,2382.5,2382.4,3.2078]
[1728041867290,7.4776,2382.5,2382.1,0.81825]
[1728041867488,0.41983,2382.3,2382.1,0.81825]
[1728041867792,0.41983,2382.3,2382.2,3.2078]
[1728041869986,4.1277,2382.7,2382.2,3.2078]
[1728041870192,0.41981,2382.4,2382.2,3.62763]
[1728041870589,0.41981,2382.4,2382.2,3.2078]
[1728041870789,0.41981,2382.4,2382.2,3.62764]
[1728041871386,0.41981,2382.4,2382.2,3.2078]
[1728041871587,1.04943,2382.6,2382.2,3.2078]
[1728041871797,0.41982,2382.4,2382.2,3.2078]
[1728041872093,0.41982,2382.4,2382.2,3.62763]
[1728041872392,0.41982,2382.4,2382.2,3.2078]
[1728041874499,0.41982,2382.4,2382.2,3.62763]